[Event "Chess Stars Match"]
[Site "Teatro Capri, Paterna, Spain"]
[Date "2019.12.15"]
[Round "6.1"]
[White "Vallejo Pons, Francisco"]
[Black "Howell, David W L"]
[Result "1/2-1/2"]
[TimeControl "7m+3s"]
[WhiteTitle "GM"]
[BlackTitle "GM"]
[WhiteFideId "2205530"]
[BlackFideId "410608"]
[WhiteElo "2704"]
[BlackElo "2676"]

1. e4 {[%clk 00:05:05]} {[%emt 00:00:01]} c6 {[%clk 00:05:04]} {[%emt
00:00:03]} 2. Nc3 {[%clk 00:05:05]} {[%emt 00:00:03]} d5 {[%clk 00:05:02]}
{[%emt 00:00:04]} 3. Nf3 {[%clk 00:05:06]} {[%emt 00:00:02]} dxe4 {[%clk
00:04:56]} {[%emt 00:00:09]} 4. Nxe4 {[%clk 00:05:06]} {[%emt 00:00:03]} Nf6
{[%clk 00:04:57]} {[%emt 00:00:02]} 5. Qe2 {[%clk 00:05:06]} {[%emt 00:00:03]}
Nxe4 {[%clk 00:04:46]} {[%emt 00:00:14]} 6. Qxe4 {[%clk 00:05:07]} {[%emt
00:00:02]} Qa5 {[%clk 00:04:47]} {[%emt 00:00:02]} 7. Qf4 {[%clk 00:03:58]}
{[%emt 00:01:12]} Qf5 {[%clk 00:04:43]} {[%emt 00:00:07]} 8. Qe3 {[%clk
00:03:58]} {[%emt 00:00:03]} Qe6 {[%clk 00:04:43]} {[%emt 00:00:03]} 9. b3
{[%clk 00:03:57]} {[%emt 00:00:04]} a5 {[%clk 00:04:44]} {[%emt 00:00:02]} 10.
Bb2 {[%clk 00:03:41]} {[%emt 00:00:19]} Qxe3+ {[%clk 00:04:40]} {[%emt
00:00:07]} 11. fxe3 {[%clk 00:03:27]} {[%emt 00:00:17]} f6 {[%clk 00:03:47]}
{[%emt 00:00:57]} 12. a3 {[%clk 00:03:04]} {[%emt 00:00:26]} e5 {[%clk
00:03:36]} {[%emt 00:00:13]} 13. d4 {[%clk 00:02:59]} {[%emt 00:00:07]} exd4
{[%clk 00:03:38]} {[%emt 00:00:02]} 14. exd4 {[%clk 00:02:56]} {[%emt
00:00:06]} Bd6 {[%clk 00:02:56]} {[%emt 00:00:45]} 15. O-O-O {[%clk 00:02:42]}
{[%emt 00:00:17]} Be6 {[%clk 00:02:18]} {[%emt 00:00:41]} 16. Bc4 {[%clk
00:02:13]} {[%emt 00:00:32]} Bxc4 {[%clk 00:02:12]} {[%emt 00:00:10]} 17. bxc4
{[%clk 00:02:14]} {[%emt 00:00:01]} Nd7 {[%clk 00:02:00]} {[%emt 00:00:15]} 18.
Rhe1+ {[%clk 00:01:56]} {[%emt 00:00:21]} Kf7 {[%clk 00:02:01]} {[%emt
00:00:02]} 19. Ne5+ {[%clk 00:01:40]} {[%emt 00:00:19]} Bxe5 {[%clk 00:01:04]}
{[%emt 00:01:01]} 20. dxe5 {[%clk 00:01:42]} {[%emt 00:00:02]} Nxe5 {[%clk
00:01:06]} {[%emt 00:00:01]} 21. Bxe5 {[%clk 00:01:42]} {[%emt 00:00:03]} fxe5
{[%clk 00:01:08]} 22. Rxe5 {[%clk 00:01:26]} {[%emt 00:00:19]} Rhd8 {[%clk
00:00:20]} {[%emt 00:00:51]} 23. Rf1+ {[%clk 00:00:43]} {[%emt 00:00:46]} Kg8
{[%clk 00:00:13]} {[%emt 00:00:10]} 24. Re7 {[%clk 00:00:45]} Rf8 {[%clk
00:00:15]} {[%emt 00:00:01]} 25. Rd1 {[%clk 00:00:39]} {[%emt 00:00:09]} Rae8
{[%clk 00:00:11]} {[%emt 00:00:08]} 26. Rxb7 {[%clk 00:00:25]} {[%emt
00:00:17]} Rf2 {[%clk 00:00:09]} {[%emt 00:00:05]} 27. g3 {[%clk 00:00:22]}
{[%emt 00:00:06]} Rxh2 {[%clk 00:00:06]} {[%emt 00:00:06]} 28. Rdd7 {[%clk
00:00:23]} {[%emt 00:00:02]} g6 {[%clk 00:00:08]} 29. Rg7+ {[%clk 00:00:16]}
{[%emt 00:00:10]} Kh8 {[%clk 00:00:09]} {[%emt 00:00:02]} 30. Rgc7 {[%clk
00:00:13]} {[%emt 00:00:06]} Rh3 {[%clk 00:00:10]} {[%emt 00:00:02]} 31. c5
{[%clk 00:00:10]} {[%emt 00:00:06]} Rxg3 {[%clk 00:00:06]} {[%emt 00:00:07]} 32.
Rxh7+ {[%clk 00:00:11]} {[%emt 00:00:02]} Kg8 {[%clk 00:00:09]} 33. Rbg7+
{[%clk 00:00:10]} {[%emt 00:00:04]} Kf8 {[%clk 00:00:11]} {[%emt 00:00:01]} 34.
Rc7 {[%clk 00:00:07]} {[%emt 00:00:06]} Kg8 {[%clk 00:00:13]} 35. Rhg7+ {[%clk
00:00:08]} {[%emt 00:00:02]} Kh8 {[%clk 00:00:15]} {[%emt 00:00:01]} 36. Rgd7
{[%clk 00:00:06]} {[%emt 00:00:05]} Rxa3 {[%clk 00:00:13]} {[%emt 00:00:05]} 37.
Rxc6 {[%clk 00:00:07]} {[%emt 00:00:02]} Rg3 {[%clk 00:00:06]} {[%emt
00:00:10]} 38. Ra6 {[%clk 00:00:04]} {[%emt 00:00:07]} Rc8 {[%clk 00:00:07]}
{[%emt 00:00:02]} 39. c6 {[%clk 00:00:06]} Rc3 {[%clk 00:00:09]} {[%emt
00:00:01]} 40. Rd6 {[%clk 00:00:07]} {[%emt 00:00:02]} Kg7 {[%clk 00:00:11]}
{[%emt 00:00:01]} 41. c7 {[%clk 00:00:08]} {[%emt 00:00:02]} 1/2-1/2

[Event "Chess Stars Match"]
[Site "Teatro Capri, Paterna, Spain"]
[Date "2019.12.15"]
[Round "6.2"]
[White "Arizmendi Martinez, Julen Luis"]
[Black "Hamitevici, Vladimir"]
[Result "1-0"]
[TimeControl "7m+3s"]
[WhiteTitle "GM"]
[BlackTitle "GM"]
[WhiteFideId "2205092"]
[BlackFideId "13902393"]
[WhiteElo "2511"]
[BlackElo "2453"]

1. d4 {[%clk 00:05:04]} {[%emt 00:00:04]} Nf6 {[%clk 00:04:57]} 2. c4 {[%clk
00:05:05]} {[%emt 00:00:11]} b6 {[%clk 00:04:53]} 3. Nc3 {[%clk 00:05:02]}
{[%emt 00:00:13]} Bb7 {[%clk 00:04:55]} 4. d5 {[%clk 00:04:38]} {[%emt
00:00:28]} e6 {[%emt 00:00:16]} 5. e4 {[%emt 00:00:29]} Bb4 {[%clk 00:04:21]}
{[%emt 00:00:04]} 6. Bd3 {[%clk 00:04:32]} {[%emt 00:00:02]} Bxc3+ 7. bxc3
{[%clk 00:04:34]} d6 {[%clk 00:04:17]} 8. Ne2 {[%clk 00:04:25]} {[%emt
00:00:13]} Nbd7 {[%clk 00:04:05]} {[%emt 00:00:15]} 9. Ng3 {[%clk 00:04:22]}
{[%emt 00:00:06]} O-O {[%clk 00:03:48]} {[%emt 00:00:20]} 10. O-O {[%emt
00:00:18]} Nc5 {[%clk 00:03:32]} {[%emt 00:00:17]} 11. Re1 {[%clk 00:03:18]}
{[%emt 00:00:54]} Re8 {[%clk 00:03:31]} {[%emt 00:00:03]} 12. Bf1 {[%clk
00:02:47]} {[%emt 00:00:35]} exd5 {[%clk 00:03:24]} {[%emt 00:00:11]} 13. exd5
{[%clk 00:02:47]} {[%emt 00:00:03]} Rxe1 {[%clk 00:03:25]} {[%emt 00:00:01]} 14.
Qxe1 {[%clk 00:02:49]} {[%emt 00:00:01]} Qe8 {[%clk 00:03:27]} {[%emt
00:00:01]} 15. Be3 {[%clk 00:02:43]} {[%emt 00:00:08]} a5 {[%clk 00:02:29]}
{[%emt 00:01:01]} 16. Qd1 {[%clk 00:02:24]} {[%emt 00:00:22]} Nce4 {[%clk
00:01:21]} {[%emt 00:01:11]} 17. Bd4 {[%clk 00:02:17]} {[%emt 00:00:10]} Nxg3
{[%clk 00:01:17]} {[%emt 00:00:07]} 18. hxg3 {[%clk 00:02:19]} {[%emt
00:00:02]} Nd7 {[%clk 00:01:13]} {[%emt 00:00:07]} 19. Qd2 {[%clk 00:02:08]}
{[%emt 00:00:14]} Qf8 {[%clk 00:00:58]} {[%emt 00:00:18]} 20. Re1 {[%clk
00:01:03]} {[%emt 00:01:08]} Re8 {[%clk 00:01:00]} {[%emt 00:00:01]} 21. Re3
{[%clk 00:01:04]} {[%emt 00:00:02]} Ne5 {[%clk 00:00:55]} {[%emt 00:00:08]} 22.
Be2 {[%clk 00:00:52]} {[%emt 00:00:15]} Ba6 {[%clk 00:00:51]} {[%emt 00:00:07]}
23. c5 {[%clk 00:00:50]} {[%emt 00:00:05]} Bxe2 {[%clk 00:00:38]} {[%emt
00:00:16]} 24. Qxe2 {[%clk 00:00:45]} {[%emt 00:00:07]} bxc5 {[%clk 00:00:19]}
{[%emt 00:00:22]} 25. Bxe5 {[%clk 00:00:47]} dxe5 {[%clk 00:00:16]} {[%emt
00:00:08]} 26. Rxe5 {[%clk 00:00:46]} Rxe5 {[%clk 00:00:09]} {[%emt 00:00:12]}
27. Qxe5 {[%clk 00:00:48]} Qd8 {[%clk 00:00:11]} {[%emt 00:00:02]} 28. c4
{[%clk 00:00:44]} {[%emt 00:00:07]} h6 {[%clk 00:00:05]} {[%emt 00:00:10]} 29.
Qc3 {[%clk 00:00:42]} {[%emt 00:00:05]} Qa8 {[%clk 00:00:07]} 30. Qe3 {[%clk
00:00:43]} {[%emt 00:00:02]} Qb8 {[%clk 00:00:06]} {[%emt 00:00:04]} 31. Qxc5
{[%clk 00:00:42]} {[%emt 00:00:04]} Qb1+ {[%clk 00:00:08]} 32. Kh2 {[%clk
00:00:45]} Qxa2 {[%clk 00:00:10]} {[%emt 00:00:02]} 33. Qxc7 {[%clk 00:00:42]}
{[%emt 00:00:06]} a4 {[%clk 00:00:07]} {[%emt 00:00:06]} 34. d6 {[%clk
00:00:42]} {[%emt 00:00:02]} Qe2 {[%clk 00:00:08]} {[%emt 00:00:01]} 35. f3
{[%clk 00:00:25]} {[%emt 00:00:21]} Qe5 {[%clk 00:00:09]} {[%emt 00:00:02]} 36.
Qc8+ {[%clk 00:00:20]} {[%emt 00:00:08]} Kh7 {[%clk 00:00:10]} 37. d7 {[%clk
00:00:21]} {[%emt 00:00:03]} 1-0

[Event "Chess Stars Match"]
[Site "Teatro Capri, Paterna, Spain"]
[Date "2019.12.15"]
[Round "6.3"]
[White "Semenova, Elena"]
[Black "Injac, Teodora"]
[Result "0-1"]
[TimeControl "7m+3s"]
[WhiteTitle "WIM"]
[BlackTitle "WIM"]
[WhiteFideId "24125148"]
[BlackFideId "932400"]
[WhiteElo "2290"]
[BlackElo "2284"]

1. e4 {[%clk 00:05:04]} {[%emt 00:00:01]} c5 {[%clk 00:05:05]} {[%emt
00:00:02]} 2. Nf3 d6 3. d4 {[%clk 00:05:08]} cxd4 {[%clk 00:05:10]} 4. Qxd4
{[%clk 00:05:10]} Nc6 {[%clk 00:05:09]} {[%emt 00:00:03]} 5. Bb5 {[%clk
00:05:12]} Bd7 {[%clk 00:05:12]} {[%emt 00:00:01]} 6. Qd3 {[%clk 00:05:14]}
{[%emt 00:00:01]} g6 {[%clk 00:05:12]} {[%emt 00:00:03]} 7. c4 {[%clk
00:05:10]} {[%emt 00:00:07]} Bg7 {[%clk 00:05:13]} {[%emt 00:00:02]} 8. Nc3
{[%clk 00:05:11]} {[%emt 00:00:02]} Nf6 {[%clk 00:05:14]} {[%emt 00:00:03]} 9.
O-O {[%clk 00:05:07]} {[%emt 00:00:07]} O-O {[%clk 00:05:14]} {[%emt 00:00:03]}
10. h3 {[%clk 00:05:03]} {[%emt 00:00:07]} Rc8 {[%clk 00:04:59]} {[%emt
00:00:18]} 11. Rb1 {[%clk 00:04:44]} {[%emt 00:00:21]} a6 {[%clk 00:04:51]}
{[%emt 00:00:12]} 12. Bxc6 {[%clk 00:04:39]} {[%emt 00:00:08]} Bxc6 {[%clk
00:04:50]} {[%emt 00:00:02]} 13. b4 {[%clk 00:04:32]} {[%emt 00:00:12]} Nd7
{[%clk 00:03:20]} {[%emt 00:01:32]} 14. Rd1 {[%clk 00:02:36]} {[%emt 00:01:59]}
Nb6 {[%clk 00:01:46]} {[%emt 00:01:37]} 15. Be3 {[%clk 00:02:03]} {[%emt
00:00:36]} Nxc4 {[%clk 00:00:59]} {[%emt 00:00:51]} 16. Bg5 {[%clk 00:01:12]}
{[%emt 00:00:53]} b5 {[%clk 00:00:44]} {[%emt 00:00:18]} 17. Nd4 {[%clk
00:01:00]} {[%emt 00:00:15]} Bb7 {[%clk 00:00:26]} {[%emt 00:00:20]} 18. Rdc1
{[%clk 00:00:47]} {[%emt 00:00:15]} Qb6 {[%clk 00:00:22]} {[%emt 00:00:07]} 19.
Nb3 {[%clk 00:00:33]} {[%emt 00:00:17]} Rfe8 {[%clk 00:00:24]} 20. Nd5 {[%clk
00:00:29]} {[%emt 00:00:08]} Bxd5 {[%clk 00:00:24]} {[%emt 00:00:03]} 21. exd5
{[%clk 00:00:20]} {[%emt 00:00:12]} Ne5 {[%clk 00:00:13]} {[%emt 00:00:13]} 22.
Qe2 {[%clk 00:00:19]} {[%emt 00:00:05]} Nc4 {[%clk 00:00:09]} {[%emt 00:00:07]}
23. Re1 {[%clk 00:00:13]} {[%emt 00:00:08]} Qb7 {[%clk 00:00:10]} {[%emt
00:00:02]} 24. Qf3 {[%clk 00:00:11]} {[%emt 00:00:05]} e6 {[%clk 00:00:10]}
{[%emt 00:00:04]} 25. Rbd1 {[%clk 00:00:04]} {[%emt 00:00:09]} e5 {[%clk
00:00:09]} {[%emt 00:00:04]} 26. h4 {[%emt 00:00:06]} f5 {[%emt 00:00:02]} 27.
h5 {[%emt 00:00:01]} e4 {[%emt 00:00:01]} 0-1

[Event "Chess Stars Match"]
[Site "Teatro Capri, Paterna, Spain"]
[Date "2019.12.15"]
[Round "6.4"]
[White "Llobell Cortell, Enrique"]
[Black "Randazzo, Adrian"]
[Result "1-0"]
[TimeControl "7m+3s"]
[WhiteTitle "IM"]
[BlackTitle "FM"]
[WhiteFideId "2216116"]
[BlackFideId "114251"]
[WhiteElo "2401"]
[BlackElo "2230"]

1. e4 {[%clk 00:05:03]} {[%emt 00:00:02]} c5 {[%clk 00:05:05]} {[%emt
00:00:02]} 2. Nc3 {[%clk 00:05:05]} {[%emt 00:00:02]} d6 {[%clk 00:05:04]}
{[%emt 00:00:03]} 3. f4 {[%clk 00:05:07]} {[%emt 00:00:01]} Nc6 {[%clk
00:04:58]} {[%emt 00:00:09]} 4. Nf3 {[%clk 00:05:08]} {[%emt 00:00:01]} g6
{[%clk 00:05:00]} {[%emt 00:00:02]} 5. Bc4 {[%clk 00:05:10]} {[%emt 00:00:01]}
Bg7 {[%clk 00:04:55]} {[%emt 00:00:08]} 6. O-O {[%clk 00:05:09]} {[%emt
00:00:03]} Nf6 {[%clk 00:04:58]} {[%emt 00:00:01]} 7. d3 {[%clk 00:05:10]}
{[%emt 00:00:02]} O-O {[%clk 00:04:58]} {[%emt 00:00:02]} 8. Qe1 {[%clk
00:05:07]} {[%emt 00:00:05]} Nd4 {[%clk 00:04:59]} {[%emt 00:00:03]} 9. Qh4
{[%clk 00:05:06]} {[%emt 00:00:04]} Nxc2 {[%clk 00:04:49]} {[%emt 00:00:13]} 10.
Rb1 {[%clk 00:05:07]} Nd4 {[%clk 00:04:32]} {[%emt 00:00:20]} 11. f5 {[%clk
00:04:59]} {[%emt 00:00:12]} b5 {[%clk 00:04:26]} {[%emt 00:00:09]} 12. Nxb5
{[%clk 00:04:08]} {[%emt 00:00:54]} Ne2+ {[%clk 00:03:53]} {[%emt 00:00:35]} 13.
Kh1 {[%clk 00:04:06]} {[%emt 00:00:05]} Nxc1 {[%clk 00:03:54]} {[%emt
00:00:02]} 14. fxg6 {[%clk 00:03:28]} {[%emt 00:00:42]} Ne2 {[%clk 00:03:16]}
{[%emt 00:00:41]} 15. Ng5 {[%clk 00:03:18]} {[%emt 00:00:14]} h6 {[%clk
00:03:09]} {[%emt 00:00:10]} 16. Nxf7 {[%clk 00:01:50]} {[%emt 00:01:30]} Rxf7
{[%clk 00:03:01]} {[%emt 00:00:11]} 17. gxf7+ {[%clk 00:01:22]} {[%emt
00:00:32]} Kh8 {[%clk 00:03:02]} {[%emt 00:00:02]} 18. Rbe1 {[%clk 00:01:07]}
{[%emt 00:00:17]} Nd4 {[%clk 00:02:52]} {[%emt 00:00:13]} 19. e5 {[%clk
00:00:47]} {[%emt 00:00:24]} dxe5 {[%clk 00:02:38]} {[%emt 00:00:17]} 20. Rxe5
{[%clk 00:00:49]} {[%emt 00:00:01]} Nxb5 {[%clk 00:01:11]} {[%emt 00:01:30]} 21.
Rxf6 {[%clk 00:00:47]} {[%emt 00:00:05]} Qf8 {[%clk 00:00:38]} {[%emt
00:00:36]} 22. Rxe7 {[%clk 00:00:16]} {[%emt 00:00:34]} Qxe7 {[%clk 00:00:17]}
{[%emt 00:00:24]} 23. Rxh6+ {[%clk 00:00:12]} {[%emt 00:00:06]} 1-0

[Event "Chess Stars Match"]
[Site "Teatro Capri, Paterna, Spain"]
[Date "2019.12.15"]
[Round "6.5"]
[White "Macias Pino, Diego"]
[Black "Povshednyi, Ivan"]
[Result "1-0"]
[TimeControl "7m+3s"]
[WhiteFideId "24529133"]
[BlackFideId "14190907"]
[WhiteElo "2161"]
[BlackElo "1795"]

1. e4 {[%clk 00:05:05]} c5 {[%clk 00:05:04]} {[%emt 00:00:02]} 2. Nc3 {[%clk
00:05:07]} {[%emt 00:00:01]} Nc6 {[%clk 00:05:06]} {[%emt 00:00:01]} 3. Bb5
{[%clk 00:05:10]} Nd4 {[%clk 00:05:08]} {[%emt 00:00:02]} 4. Bc4 {[%clk
00:05:12]} e6 {[%clk 00:05:10]} 5. Nge2 {[%clk 00:05:09]} {[%emt 00:00:07]} a6
{[%clk 00:05:09]} {[%emt 00:00:04]} 6. d3 {[%clk 00:05:09]} {[%emt 00:00:03]}
d6 {[%clk 00:05:06]} {[%emt 00:00:06]} 7. Nxd4 {[%clk 00:05:09]} {[%emt
00:00:03]} cxd4 {[%clk 00:05:08]} {[%emt 00:00:01]} 8. Ne2 {[%clk 00:05:11]}
{[%emt 00:00:01]} e5 {[%clk 00:05:04]} {[%emt 00:00:07]} 9. O-O {[%clk
00:05:07]} {[%emt 00:00:07]} Nf6 {[%clk 00:05:06]} {[%emt 00:00:01]} 10. Bb3
{[%clk 00:05:05]} {[%emt 00:00:06]} Be7 {[%clk 00:05:08]} {[%emt 00:00:01]} 11.
Qe1 {[%clk 00:05:03]} {[%emt 00:00:05]} O-O {[%clk 00:05:06]} {[%emt 00:00:04]}
12. f4 {[%clk 00:05:05]} {[%emt 00:00:01]} b5 {[%clk 00:04:40]} {[%emt
00:00:29]} 13. Qg3 {[%clk 00:04:28]} {[%emt 00:00:39]} Ng4 {[%clk 00:04:06]}
{[%emt 00:00:37]} 14. h3 {[%clk 00:04:16]} {[%emt 00:00:15]} Ne3 {[%clk
00:04:08]} {[%emt 00:00:01]} 15. Bxe3 {[%clk 00:04:09]} {[%emt 00:00:10]} dxe3
{[%clk 00:04:09]} {[%emt 00:00:02]} 16. Bd5 {[%clk 00:03:15]} {[%emt 00:00:57]}
Rb8 {[%clk 00:04:03]} {[%emt 00:00:09]} 17. fxe5 {[%clk 00:03:14]} {[%emt
00:00:04]} dxe5 {[%clk 00:03:56]} {[%emt 00:00:10]} 18. Qxe5 {[%clk 00:03:02]}
{[%emt 00:00:15]} Bd7 {[%clk 00:03:50]} {[%emt 00:00:10]} 19. Qf4 {[%clk
00:02:53]} {[%emt 00:00:11]} Bg5 {[%clk 00:03:45]} {[%emt 00:00:09]} 20. Bxf7+
{[%clk 00:02:11]} {[%emt 00:00:45]} Kh8 {[%clk 00:03:47]} {[%emt 00:00:01]} 21.
Qh2 {[%clk 00:02:11]} {[%emt 00:00:02]} Bf6 {[%clk 00:03:38]} {[%emt 00:00:12]}
22. e5 {[%clk 00:02:02]} {[%emt 00:00:12]} Bg5 {[%clk 00:03:24]} {[%emt
00:00:17]} 23. e6 {[%clk 00:01:49]} {[%emt 00:00:16]} Bc6 {[%clk 00:03:25]}
{[%emt 00:00:01]} 24. Rf5 {[%clk 00:01:36]} {[%emt 00:00:16]} Bh6 {[%clk
00:03:21]} {[%emt 00:00:07]} 25. Qe5 {[%clk 00:01:25]} {[%emt 00:00:15]} Qe7
{[%clk 00:03:17]} {[%emt 00:00:07]} 26. Rh5 {[%clk 00:01:17]} {[%emt 00:00:10]}
Rbc8 {[%clk 00:02:23]} {[%emt 00:00:58]} 27. Rxh6 {[%clk 00:00:59]} {[%emt
00:00:21]} Rxf7 {[%clk 00:02:24]} {[%emt 00:00:02]} 28. Rxh7+ {[%clk 00:00:47]}
{[%emt 00:00:15]} Kxh7 {[%clk 00:02:25]} {[%emt 00:00:02]} 29. Qh5+ {[%clk
00:00:48]} {[%emt 00:00:01]} Kg8 {[%clk 00:02:27]} {[%emt 00:00:01]} 30. Qxf7+
{[%clk 00:00:50]} {[%emt 00:00:02]} Qxf7 {[%clk 00:02:28]} {[%emt 00:00:01]} 31.
exf7+ {[%clk 00:00:52]} {[%emt 00:00:01]} Kxf7 {[%emt 00:00:02]} 32. Nd4 {[%clk
00:00:47]} {[%emt 00:00:06]} Bd5 {[%clk 00:02:18]} {[%emt 00:00:15]} 33. b3
{[%clk 00:00:38]} {[%emt 00:00:13]} Kf6 {[%clk 00:02:13]} {[%emt 00:00:07]} 34.
c4 {[%clk 00:00:33]} {[%emt 00:00:09]} Ke5 {[%clk 00:02:12]} {[%emt 00:00:04]}
35. Nc2 {[%clk 00:00:33]} {[%emt 00:00:03]} bxc4 {[%clk 00:02:04]} {[%emt
00:00:11]} 36. bxc4 {[%clk 00:00:32]} {[%emt 00:00:04]} Bc6 {[%clk 00:02:01]}
{[%emt 00:00:06]} 37. Re1 {[%clk 00:00:31]} {[%emt 00:00:03]} Rb8 {[%clk
00:01:55]} {[%emt 00:00:09]} 38. Rxe3+ {[%clk 00:00:28]} {[%emt 00:00:06]} Kd6
{[%clk 00:01:55]} {[%emt 00:00:04]} 39. Nd4 {[%clk 00:00:27]} {[%emt 00:00:04]}
Ba8 {[%clk 00:01:55]} {[%emt 00:00:03]} 40. Nb3 {[%clk 00:00:26]} {[%emt
00:00:04]} Bc6 {[%clk 00:01:51]} {[%emt 00:00:07]} 41. d4 {[%clk 00:00:25]}
{[%emt 00:00:04]} Rb4 {[%clk 00:01:44]} {[%emt 00:00:10]} 42. d5 {[%clk
00:00:18]} {[%emt 00:00:10]} Bd7 {[%clk 00:01:43]} {[%emt 00:00:04]} 43. Rc3
{[%clk 00:00:17]} {[%emt 00:00:04]} Bf5 {[%clk 00:01:40]} {[%emt 00:00:06]} 44.
Kf2 {[%clk 00:00:18]} {[%emt 00:00:02]} Bc8 {[%clk 00:01:32]} {[%emt 00:00:11]}
45. Ke3 {[%clk 00:00:20]} {[%emt 00:00:01]} Ke5 {[%clk 00:01:32]} {[%emt
00:00:03]} 46. Rc1 {[%clk 00:00:18]} {[%emt 00:00:06]} Rb7 {[%clk 00:01:23]}
{[%emt 00:00:11]} 47. Kd3 {[%clk 00:00:19]} {[%emt 00:00:03]} Bf5+ {[%clk
00:01:24]} {[%emt 00:00:02]} 48. Kc3 {[%clk 00:00:21]} {[%emt 00:00:01]} Rc7
{[%clk 00:01:26]} {[%emt 00:00:01]} 49. Rf1 {[%clk 00:00:21]} {[%emt 00:00:02]}
Be4 {[%clk 00:01:24]} {[%emt 00:00:04]} 50. Re1 {[%clk 00:00:20]} {[%emt
00:00:05]} Kf4 {[%clk 00:01:26]} {[%emt 00:00:02]} 51. d6 {[%clk 00:00:21]}
{[%emt 00:00:02]} Rd7 {[%emt 00:00:02]} 52. c5 {[%clk 00:00:22]} {[%emt
00:00:02]} Bxg2 {[%clk 00:01:26]} {[%emt 00:00:04]} 53. Re7 {[%clk 00:00:22]}
{[%emt 00:00:03]} Bxh3 {[%clk 00:01:24]} {[%emt 00:00:05]} 54. Nd4 {[%clk
00:00:16]} {[%emt 00:00:10]} Rd8 {[%clk 00:01:12]} {[%emt 00:00:15]} 55. Ne6+
{[%clk 00:00:08]} {[%emt 00:00:11]} 1-0

[Event "Chess Stars Match"]
[Site "Teatro Capri, Paterna, Spain"]
[Date "2019.12.15"]
[Round "7.1"]
[White "Howell, David W L"]
[Black "Arizmendi Martinez, Julen Luis"]
[Result "1-0"]
[TimeControl "7m+3s"]
[WhiteTitle "GM"]
[BlackTitle "GM"]
[WhiteFideId "410608"]
[BlackFideId "2205092"]
[WhiteElo "2676"]
[BlackElo "2511"]

1. Nf3 {[%clk 00:03:04]} d5 {[%clk 00:03:03]} {[%emt 00:00:04]} 2. c4 {[%clk
00:03:05]} {[%emt 00:00:02]} e6 {[%clk 00:03:05]} {[%emt 00:00:01]} 3. g3
{[%clk 00:03:05]} {[%emt 00:00:03]} Nf6 {[%clk 00:03:07]} 4. Bg2 {[%clk
00:03:07]} d4 {[%clk 00:03:09]} {[%emt 00:00:01]} 5. O-O {[%clk 00:03:04]}
{[%emt 00:00:05]} c5 {[%clk 00:03:11]} {[%emt 00:00:02]} 6. d3 {[%clk
00:02:57]} {[%emt 00:00:10]} Nc6 {[%clk 00:03:09]} {[%emt 00:00:05]} 7. e3
{[%clk 00:02:59]} Bd6 {[%clk 00:02:54]} {[%emt 00:00:17]} 8. exd4 {[%clk
00:03:00]} {[%emt 00:00:02]} cxd4 {[%clk 00:02:56]} {[%emt 00:00:01]} 9. Bg5
{[%clk 00:02:52]} {[%emt 00:00:11]} h6 {[%clk 00:02:57]} {[%emt 00:00:02]} 10.
Bxf6 {[%clk 00:02:53]} {[%emt 00:00:01]} Qxf6 {[%clk 00:02:58]} {[%emt
00:00:02]} 11. Nbd2 {[%clk 00:02:55]} Qe7 {[%clk 00:02:49]} {[%emt 00:00:12]}
12. a3 {[%clk 00:02:56]} {[%emt 00:00:02]} a5 {[%clk 00:02:48]} {[%emt
00:00:05]} 13. Ne4 {[%clk 00:02:42]} {[%emt 00:00:17]} Bc7 {[%clk 00:02:47]}
{[%emt 00:00:04]} 14. b4 {[%clk 00:02:42]} {[%emt 00:00:03]} axb4 {[%clk
00:02:17]} {[%emt 00:00:33]} 15. axb4 {[%clk 00:02:44]} {[%emt 00:00:01]} Rxa1
{[%clk 00:02:08]} {[%emt 00:00:12]} 16. Qxa1 {[%clk 00:02:45]} {[%emt
00:00:01]} Nxb4 {[%clk 00:02:01]} {[%emt 00:00:10]} 17. Qa4+ {[%clk 00:02:02]}
{[%emt 00:00:46]} Nc6 {[%clk 00:00:48]} {[%emt 00:01:16]} 18. Nxd4 {[%clk
00:02:00]} {[%emt 00:00:04]} O-O {[%clk 00:00:44]} {[%emt 00:00:07]} 19. Nxc6
{[%clk 00:01:58]} {[%emt 00:00:06]} bxc6 {[%clk 00:00:45]} {[%emt 00:00:01]} 20.
Qxc6 {[%clk 00:01:59]} {[%emt 00:00:02]} Be5 {[%clk 00:00:42]} {[%emt
00:00:07]} 21. Rb1 {[%clk 00:01:33]} {[%emt 00:00:29]} Rd8 {[%clk 00:00:37]}
{[%emt 00:00:08]} 22. h4 {[%clk 00:01:00]} {[%emt 00:00:36]} Bd4 {[%clk
00:00:27]} {[%emt 00:00:13]} 23. Rb8 {[%clk 00:00:54]} {[%emt 00:00:08]} Bd7
{[%clk 00:00:14]} {[%emt 00:00:16]} 24. Rxd8+ {[%clk 00:00:45]} {[%emt
00:00:12]} Qxd8 {[%clk 00:00:16]} {[%emt 00:00:01]} 25. Qd6 {[%clk 00:00:47]}
e5 {[%clk 00:00:10]} {[%emt 00:00:09]} 26. Nc5 {[%clk 00:00:41]} {[%emt
00:00:09]} Bxc5 {[%clk 00:00:12]} {[%emt 00:00:02]} 27. Qxc5 {[%clk 00:00:43]}
Bf5 {[%clk 00:00:13]} {[%emt 00:00:01]} 28. Qxe5 {[%clk 00:00:41]} {[%emt
00:00:05]} Bxd3 {[%clk 00:00:15]} {[%emt 00:00:02]} 29. c5 {[%clk 00:00:43]}
{[%emt 00:00:01]} Qa5 {[%clk 00:00:10]} {[%emt 00:00:07]} 30. h5 {[%clk
00:00:29]} {[%emt 00:00:16]} Qb5 {[%clk 00:00:07]} {[%emt 00:00:07]} 31. Kh2
{[%clk 00:00:27]} {[%emt 00:00:05]} Kf8 {[%clk 00:00:04]} {[%emt 00:00:06]} 32.
Qd6+ {[%emt 00:00:12]} Kg8 33. Bf3 {[%clk 00:00:15]} {[%emt 00:00:06]} Bf5
{[%clk 00:00:05]} {[%emt 00:00:05]} 34. Kg2 {[%clk 00:00:12]} {[%emt 00:00:06]}
Qb1 {[%clk 00:00:05]} {[%emt 00:00:04]} 35. c6 {[%clk 00:00:10]} {[%emt
00:00:04]} Qf1+ {[%clk 00:00:05]} {[%emt 00:00:02]} 36. Kxf1 {[%emt 00:00:02]}
1-0